fUSD/lending_fUSD_20250708
["ID","MTS","AMOUNT","RATE_DAILY","PERIOD"]
[370332935,1751963442789,-7842.52,0.00028358,3]
[370332937,1751963442798,-4364.53202784,0.00028358,2]
[370332939,1751963442807,-150.0,0.00028359,2]
[370332941,1751963442818,-460.0,0.00028362,3]
[370332943,1751963442828,-460.0,0.00028362,3]
[370332945,1751963442837,-460.0,0.00028362,3]
[370332947,1751963442847,-460.0,0.00028362,3]
[370332949,1751963442856,-460.0,0.00028362,3]
[370332951,1751963442866,-532.26382205,0.00028362,3]
[370332953,1751963442875,-460.0,0.00028362,3]
[370332955,1751963442885,-460.0,0.00028362,3]
[370332957,1751963442894,-460.0,0.00028362,3]
[370332959,1751963442904,-460.0,0.00028362,3]
[370332961,1751963442913,-460.0,0.00028362,3]
[370332963,1751963442922,-460.0,0.00028362,3]
[370332965,1751963442931,-460.0,0.00028362,3]
[370332967,1751963442941,-229.71774908,0.00028362,3]
[370332969,1751963442950,-460.0,0.00028362,3]
[370332971,1751963442960,-1055.218504,0.00028362,3]
[370332973,1751963442970,-159.225285,0.00028362,3]
[370332975,1751963442980,-158.447063,0.00028362,3]
[370332977,1751963442989,-460.0,0.00028362,3]
[370332979,1751963442999,-153.090645,0.00028362,3]
[370332981,1751963443008,-1078.08655,0.00028362,3]
[370332983,1751963443018,-537.95,0.00028362,3]
[370332985,1751963443027,-1145.463663,0.00028362,3]
[370332988,1751963443038,-460.0,0.00028362,3]
[370332990,1751963443047,-460.0,0.00028362,3]
[370332992,1751963443057,-3679.98,0.00028362,3]
[370332994,1751963443066,-460.0,0.00028362,3]
[370332996,1751963443076,-460.0,0.00028362,3]
[370332998,1751963443085,-1042.09,0.00028362,3]
[370333000,1751963443094,-460.0,0.00028362,3]
[370333002,1751963443104,-774.2,0.00028362,3]
[370333004,1751963443113,-460.0,0.00028362,3]
[370333006,1751963443122,-673.28,0.00028362,3]
[370333008,1751963443131,-738.87,0.00028362,3]
[370333010,1751963443141,-460.0,0.00028362,3]
[370333012,1751963443151,-460.0,0.00028362,3]
[370333014,1751963443160,-1048.38,0.00028362,3]
[370333016,1751963443170,-1297.67,0.00028362,3]
[370333018,1751963443180,-3237.87,0.00028362,3]
[370333020,1751963443189,-795.31,0.00028362,3]
[370333022,1751963443199,-500.0,0.00028362,3]
[370333024,1751963443208,-8729.06405568,0.00028362,2]
[370333026,1751963443218,-8729.06405568,0.00028363,2]
[370333028,1751963443227,-460.0,0.00028364,3]
[370333030,1751963443237,-460.0,0.00028364,3]
[370333032,1751963443247,-460.0,0.00028364,3]
[370333034,1751963443256,-460.0,0.00028364,3]
[370333036,1751963443265,-460.0,0.00028364,3]
[370333038,1751963443275,-490.0,0.00028364,3]
[370333040,1751963443284,-460.0,0.00028364,3]
[370333042,1751963443294,-460.0,0.00028364,3]
[370333044,1751963443303,-565.74175225,0.00028364,3]
[370333046,1751963443313,-525.99478469,0.00028364,3]
[370333048,1751963443322,-279.54832111,0.00028364,3]
[370333050,1751963443332,-460.0,0.00028364,3]
[370333052,1751963443342,-460.0,0.00028364,3]
[370333054,1751963443351,-460.0,0.00028364,3]
[370333056,1751963443360,-460.0,0.00028364,3]
[370333058,1751963443370,-1000.0,0.00028364,3]
[370333060,1751963443379,-460.0,0.00028364,3]
[370333062,1751963443389,-661.49,0.00028364,3]
[370333064,1751963443400,-620.67,0.00028364,3]
[370333066,1751963443409,-4995.93,0.00028364,3]
[370333068,1751963443419,-676.85,0.00028364,3]
[370333070,1751963443429,-640.47,0.00028364,3]
[370333072,1751963443438,-612.69,0.00028364,3]
[370333074,1751963443448,-1788.72,0.00028364,3]
[370333076,1751963443458,-995.0,0.00028364,3]
[370333078,1751963443467,-1650.99,0.00028364,3]
[370333080,1751963443477,-840.27,0.00028364,3]
[370333082,1751963443486,-2070.8,0.00028364,3]
[370333085,1751963443496,-561.41,0.00028364,3]
[370333087,1751963443511,-3453.3,0.00028364,3]
[370333090,1751963443520,-1205.16,0.00028364,3]
[370333093,1751963443531,-622.02,0.00028364,3]
[370333096,1751963443541,-5547.99,0.00028364,3]
[370333099,1751963443551,-505.3,0.00028364,3]
[370333101,1751963443561,-968.17,0.00028364,3]
[370333103,1751963443571,-1590.57,0.00028364,3]
[370333105,1751963443584,-719.19,0.00028364,3]
[370333107,1751963443594,-2226.83,0.00028364,3]
[370333109,1751963443604,-35542.53,0.00028364,3]
[370333111,1751963443615,-3253.27,0.00028364,3]
[370333113,1751963443626,-1138.53,0.00028364,3]
[370333116,1751963443637,-460.0,0.00028364,3]
[370333118,1751963443647,-879.63,0.00028364,3]
[370333119,1751963443657,-655.81,0.00028364,3]
[370333121,1751963443669,-2183.34,0.00028364,3]
[370333123,1751963443679,-460.0,0.00028365,3]
[370333125,1751963443689,-460.0,0.00028365,3]
[370333127,1751963443698,-460.0,0.00028365,3]
[370333129,1751963443708,-460.0,0.00028365,3]
[370333131,1751963443718,-523.82,0.00028365,3]
[370333133,1751963443727,-460.0,0.00028365,3]
[370333135,1751963443737,-460.0,0.00028365,3]
[370333137,1751963443748,-2874.55,0.00028365,3]
[370333139,1751963443758,-681.28,0.00028365,3]
[370333141,1751963443768,-1056.68,0.00028365,3]
[370333143,1751963443779,-1289.78,0.00028365,3]
[370333145,1751963443788,-800.54,0.00028365,3]
[370333147,1751963443798,-1258.51,0.00028365,3]
[370333149,1751963443808,-460.0,0.00028365,3]
[370333151,1751963443818,-522.71,0.00028365,3]
[370333153,1751963443828,-460.0,0.00028365,3]
[370333155,1751963443839,-654.49,0.00028365,3]
[370333157,1751963443849,-653.21,0.00028365,3]
[370333159,1751963443859,-500.0,0.00028365,3]
[370333162,1751963443870,-170.86490093,0.00028365,2]
[370333164,1751963443879,-462.54545206,0.00028366,3]
[370333165,1751963443890,-460.0,0.00028366,3]
[370333168,1751963443901,-460.0,0.00028366,3]
[370333170,1751963443911,-460.0,0.00028366,3]
[370333172,1751963443921,-460.0,0.00028366,3]
[370333174,1751963443931,-460.0,0.00028366,3]
[370333176,1751963443941,-723.93,0.00028366,3]
[370333178,1751963443951,-550.0,0.00028366,3]
[370333179,1751963443960,-460.0,0.00028366,3]
[370333181,1751963443970,-460.0,0.00028366,3]
[370333184,1751963443981,-460.0,0.00028366,3]
[370333186,1751963443990,-1922.92,0.00028366,3]
[370333188,1751963444001,-460.0,0.00028366,3]
[370333189,1751963444011,-460.0,0.00028366,3]
[370333192,1751963444021,-460.0,0.00028366,3]
[370333194,1751963444031,-460.0,0.00028366,3]
[370333196,1751963444040,-460.0,0.00028366,3]
[370333198,1751963444050,-460.0,0.00028366,3]
[370333200,1751963444061,-525.89638767,0.00028366,3]
[370333202,1751963444071,-460.0,0.00028366,3]
[370333204,1751963444081,-842.63,0.00028366,3]
[370333206,1751963444091,-460.0,0.00028366,3]
[370333207,1751963444101,-522.02647003,0.00028366,3]
[370333209,1751963444111,-460.0,0.00028366,3]
[370333211,1751963444120,-460.0,0.00028366,3]
[370333214,1751963444130,-460.0,0.00028366,3]
[370333215,1751963444140,-460.0,0.00028366,3]
[370333218,1751963444150,-460.0,0.00028366,3]
[370333219,1751963444160,-460.0,0.00028366,3]
[370333222,1751963444171,-460.0,0.00028366,3]
[370333224,1751963444182,-460.0,0.00028366,3]
[370333226,1751963444191,-460.0,0.00028366,3]
[370333228,1751963444201,-460.0,0.00028366,3]
[370333229,1751963444211,-733.66,0.00028366,3]
[370333231,1751963444221,-505.75222447,0.00028366,3]
[370333234,1751963444230,-463.37174553,0.00028366,3]
[370333235,1751963444241,-460.0,0.00028366,3]
[370333237,1751963444251,-460.0,0.00028366,3]
[370333240,1751963444261,-460.0,0.00028366,3]
[370333242,1751963444271,-460.0,0.00028366,3]
[370333244,1751963444280,-460.0,0.00028366,3]
[370333246,1751963444290,-550.0,0.00028366,3]
[370333247,1751963444300,-1213.5,0.00028366,3]
[370333248,1751963444311,-460.0,0.00028366,3]
[370333249,1751963444321,-460.0,0.00028366,3]
[370333250,1751963444330,-460.0,0.00028366,3]
[370333251,1751963444340,-652.29,0.00028366,3]
[370333252,1751963444351,-460.0,0.00028366,3]
[370333253,1751963444361,-536.75782349,0.00028366,3]
[370333254,1751963444370,-460.0,0.00028366,3]
[370333255,1751963444380,-460.0,0.00028366,3]
[370333256,1751963444390,-480.22,0.00028366,3]
[370333258,1751963444401,-489.14,0.00028366,3]
[370333260,1751963444411,-460.0,0.00028366,3]
[370333262,1751963444421,-522.76607386,0.00028366,3]
[370333264,1751963444432,-1063.1,0.00028366,3]
[370333266,1751963444442,-460.0,0.00028366,3]
[370333268,1751963444452,-812.27,0.00028366,3]
[370333270,1751963444462,-460.0,0.00028366,3]
[370333272,1751963444471,-460.0,0.00028366,3]
[370333274,1751963444481,-460.0,0.00028366,3]
[370333276,1751963444491,-533.83,0.00028366,3]
[370333278,1751963444503,-460.0,0.00028366,3]
[370333280,1751963444514,-460.0,0.00028366,3]
[370333282,1751963444524,-460.0,0.00028366,3]
[370333284,1751963444535,-912.49,0.00028366,3]
[370333286,1751963444545,-460.0,0.00028366,3]
[370333288,1751963444554,-460.0,0.00028366,3]
[370333289,1751963444564,-460.0,0.00028366,3]
[370333292,1751963444574,-539.37658457,0.00028366,3]
[370333294,1751963444584,-460.0,0.00028366,3]
[370333296,1751963444594,-1415.9,0.00028366,3]
[370333298,1751963444604,-460.0,0.00028366,3]
[370333300,1751963444613,-460.0,0.00028366,3]
[370333301,1751963444623,-716.84,0.00028366,3]
[370333303,1751963444633,-460.0,0.00028366,3]
[370333305,1751963444644,-554.28,0.00028366,3]
[370333308,1751963444654,-502.43909253,0.00028366,3]
[370333310,1751963444663,-460.0,0.00028366,3]
[370333311,1751963444674,-460.0,0.00028366,3]
[370333313,1751963444684,-460.0,0.00028366,3]
[370333315,1751963444694,-1505.33,0.00028366,3]
[370333318,1751963444704,-158.1365174,0.00028366,3]
[370333319,1751963444716,-460.0,0.00028366,3]
[370333321,1751963444725,-1266.89,0.00028366,3]
[370333324,1751963444736,-460.0,0.00028366,3]
[370333326,1751963444746,-460.0,0.00028366,3]
[370333328,1751963444756,-460.0,0.00028366,3]
[370333330,1751963444766,-383.21104615,0.00028366,3]
[370333332,1751963444777,-460.0,0.00028366,3]
[370333334,1751963444787,-589.03,0.00028366,3]
[370333336,1751963444796,-460.0,0.00028366,3]
[370333338,1751963444806,-460.0,0.00028366,3]
[370333340,1751963444816,-460.0,0.00028366,3]
[370333341,1751963444826,-552.17,0.00028366,3]
[370333344,1751963444836,-460.0,0.00028366,3]
[370333346,1751963444846,-460.0,0.00028366,3]
[370333348,1751963444855,-460.0,0.00028366,3]
[370333349,1751963444867,-616.92,0.00028366,3]
[370333351,1751963444878,-460.0,0.00028366,3]
[370333354,1751963444888,-460.0,0.00028366,3]
[370333356,1751963444899,-460.0,0.00028366,3]
[370333358,1751963444908,-460.0,0.00028366,3]
[370333360,1751963444918,-460.0,0.00028366,3]
[370333361,1751963444929,-460.0,0.00028366,3]
[370333363,1751963444939,-460.0,0.00028366,3]
[370333365,1751963444950,-460.0,0.00028366,3]
[370333368,1751963444960,-460.0,0.00028366,3]
[370333370,1751963444971,-460.0,0.00028366,3]
[370333372,1751963444981,-460.0,0.00028366,3]
[370333374,1751963444992,-460.0,0.00028366,3]
[370333376,1751963445003,-460.0,0.00028366,3]
[370333378,1751963445012,-460.0,0.00028366,3]
[370333380,1751963445023,-460.0,0.00028366,3]
[370333382,1751963445033,-460.0,0.00028366,3]
[370333384,1751963445043,-460.0,0.00028366,3]
[370333386,1751963445053,-460.0,0.00028366,3]
[370333388,1751963445063,-460.0,0.00028366,3]
[370333390,1751963445073,-460.0,0.00028366,3]
[370333392,1751963445083,-460.0,0.00028366,3]
[370333394,1751963445092,-460.0,0.00028366,3]
[370333396,1751963445102,-460.0,0.00028366,3]
[370333398,1751963445112,-460.0,0.00028366,3]
[370333400,1751963445122,-473.25,0.00028366,3]
[370333402,1751963445130,-460.0,0.00028366,3]
[370333404,1751963445139,-460.0,0.00028366,3]
[370333406,1751963445148,-2129.49,0.00028366,3]
[370333408,1751963445156,-460.0,0.00028366,3]
[370333410,1751963445165,-460.0,0.00028366,3]
[370333412,1751963445175,-911.27,0.00028366,3]
[370333414,1751963445184,-910.34,0.00028366,3]
[370333416,1751963445193,-552.57460248,0.00028366,3]
[370333418,1751963445203,-460.0,0.00028366,3]
[370333420,1751963445213,-460.0,0.00028366,3]
[370333422,1751963445222,-490.0,0.00028366,3]
[370333424,1751963445231,-666.98,0.00028366,3]
[370333425,1751963445242,-163.26112806,0.00028366,3]
[370333428,1751963445252,-460.0,0.00028366,3]
[370333430,1751963445261,-460.0,0.00028366,3]
[370333431,1751963445272,-460.0,0.00028366,3]
[370333433,1751963445282,-617.13,0.00028366,3]
[370333435,1751963445291,-460.0,0.00028366,3]
[370333437,1751963445301,-460.0,0.00028366,3]
[370333439,1751963445311,-460.0,0.00028366,3]
[370333442,1751963445321,-460.0,0.00028366,3]
[370333444,1751963445330,-460.0,0.00028366,3]
[370333446,1751963445339,-460.0,0.00028366,3]
[370333447,1751963445348,-460.0,0.00028366,3]
[370333449,1751963445358,-460.0,0.00028366,3]
[370333451,1751963445368,-460.0,0.00028366,3]
[370333453,1751963445377,-460.0,0.00028366,3]
[370333455,1751963445387,-460.0,0.00028366,3]
[370333457,1751963445397,-597.87,0.00028366,3]
[370333459,1751963445407,-460.0,0.00028366,3]
[370333461,1751963445417,-936.08,0.00028366,3]
[370333464,1751963445427,-460.0,0.00028366,3]
[370333466,1751963445437,-460.0,0.00028366,3]
[370333468,1751963445447,-460.0,0.00028366,3]
[370333470,1751963445457,-460.0,0.00028366,3]
[370333472,1751963445467,-477.61983016,0.00028366,3]
[370333474,1751963445477,-459.87449197,0.00028366,3]
[370333476,1751963445486,-460.0,0.00028366,3]
[370333478,1751963445495,-1165.85,0.00028366,3]
[370333480,1751963445510,-460.0,0.00028366,3]
[370333482,1751963445519,-460.0,0.00028366,3]
[370333484,1751963445528,-395.36500427,0.00028366,3]
[370333487,1751963445537,-460.0,0.00028366,3]
[370333488,1751963445548,-583.23,0.00028366,3]
[370333490,1751963445557,-497.25454641,0.00028366,3]
[370333492,1751963445566,-460.0,0.00028366,3]
[370333495,1751963445577,-460.0,0.00028366,3]
[370333497,1751963445587,-460.0,0.00028366,3]
[370333498,1751963445596,-460.0,0.00028366,3]
[370333500,1751963445605,-460.0,0.00028366,3]
[370333502,1751963445615,-460.0,0.00028366,3]
[370333504,1751963445624,-282.9741734,0.00028366,3]
[370333506,1751963445634,-460.0,0.00028366,3]
[370333508,1751963445644,-460.0,0.00028366,3]
[370333510,1751963445654,-516.58,0.00028366,3]
[370333513,1751963445664,-460.0,0.00028366,3]
[370333515,1751963445675,-832.94,0.00028366,3]
[370333517,1751963445684,-460.0,0.00028366,3]
[370333519,1751963445694,-460.0,0.00028366,3]
[370333521,1751963445704,-460.0,0.00028366,3]
[370333523,1751963445713,-460.0,0.00028366,3]
[370333525,1751963445722,-162.21335856,0.00028366,3]
[370333526,1751963445731,-460.0,0.00028366,3]
[370333529,1751963445740,-490.0,0.00028366,3]
[370333531,1751963445750,-350.60217386,0.00028366,3]
[370333533,1751963445760,-460.0,0.00028366,3]
[370333535,1751963445769,-460.0,0.00028366,3]
[370333537,1751963445778,-460.0,0.00028366,3]
[370333539,1751963445788,-460.0,0.00028366,3]
[370333541,1751963445798,-491.98724335,0.00028366,3]
[370333543,1751963445807,-737.02,0.00028366,3]
[370333545,1751963445816,-460.0,0.00028366,3]
[370333546,1751963445825,-493.34846461,0.00028366,3]
[370333548,1751963445835,-547.93,0.00028366,3]
[370333551,1751963445844,-460.0,0.00028366,3]
[370333552,1751963445855,-468.95897223,0.00028366,3]
[370333554,1751963445865,-460.0,0.00028366,3]
[370333557,1751963445875,-422.36241149,0.00028366,3]
[370333559,1751963445884,-460.0,0.00028366,3]
[370333561,1751963445894,-500.54561515,0.00028366,3]
[370333563,1751963445904,-215.0738,0.00028369,2]
[370333565,1751963445913,-332.76385542,0.00028369,2]
[370333567,1751963445923,-150.0,0.00028371,2]
[370333569,1751963445933,-460.0,0.00028372,3]
[370333571,1751963445942,-500.0,0.00028372,3]
[370333573,1751963445951,-460.0,0.00028372,3]
[370333575,1751963445960,-460.0,0.00028372,3]
[370333577,1751963445970,-460.0,0.00028372,3]
[370333579,1751963445980,-460.0,0.00028372,3]
[370333581,1751963445989,-460.0,0.00028372,3]
[370333583,1751963445998,-460.0,0.00028372,3]
[370333585,1751963446008,-460.0,0.00028372,3]
[370333587,1751963446017,-460.0,0.00028372,3]
[370333589,1751963446027,-229.27241986,0.00028372,3]
[370333591,1751963446036,-460.0,0.00028372,3]
[370333593,1751963446046,-460.0,0.00028372,3]
[370333596,1751963446055,-460.0,0.00028372,3]
[370333598,1751963446065,-1152.85,0.00028372,3]
[370333600,1751963446074,-509.51,0.00028372,3]
[370333602,1751963446085,-1340.11,0.00028372,3]
[370333604,1751963446094,-460.0,0.00028372,3]
[370333606,1751963446103,-460.0,0.00028372,3]
[370333608,1751963446113,-996.88,0.00028372,3]
[370333610,1751963446123,-544.86,0.00028372,3]
[370333612,1751963446132,-460.0,0.00028372,3]
[370333614,1751963446142,-739.93,0.00028372,3]
[370333616,1751963446151,-517.54,0.00028372,3]
[370333618,1751963446161,-595.76,0.00028372,3]
[370333620,1751963446170,-518.32,0.00028372,3]
[370333622,1751963446181,-1801.48,0.00028372,3]
[370333624,1751963446190,-460.0,0.00028372,3]
[370333626,1751963446200,-460.0,0.00028372,3]
[370333628,1751963446210,-512.53,0.00028372,3]
[370333630,1751963446220,-1150.71,0.00028372,3]
[370333631,1751963446235,-460.0,0.00028372,3]
[370333634,1751963446244,-557.47726171,0.00028372,3]
[370333637,1751963446254,-489.71,0.00028372,3]
[370333639,1751963446263,-460.0,0.00028372,3]
[370333641,1751963446273,-609.33,0.00028372,3]
[370333643,1751963446283,-460.0,0.00028372,3]
[370333645,1751963446293,-575.61,0.00028372,3]
[370333647,1751963446303,-1258.3,0.00028372,3]
[370333649,1751963446313,-2113.6,0.00028372,3]
[370333651,1751963446322,-949.7,0.00028372,3]
[370333653,1751963446331,-803.38,0.00028372,3]
[370333655,1751963446341,-460.0,0.00028372,3]
[370333657,1751963446350,-541.67,0.00028372,3]
[370333659,1751963446359,-989.41,0.00028372,3]
[370333661,1751963446369,-469.98,0.00028372,3]
[370333663,1751963446379,-3092.09,0.00028372,3]
[370333665,1751963446389,-1689.16,0.00028372,3]
[370333667,1751963446398,-522.35,0.00028372,3]
[370333669,1751963446408,-1463.04,0.00028372,3]
[370333693,1751963446632,-574.22,0.00028372,3]
[370333696,1751963446643,-1601.4,0.00028372,3]
[370333698,1751963446652,-1967.94,0.00028372,3]
[370333699,1751963446662,-460.0,0.00028372,3]
[370333700,1751963446671,-490.0,0.00028372,3]
[370333701,1751963446681,-460.0,0.00028372,3]
[370333702,1751963446692,-2671.15,0.00028372,3]
[370333703,1751963446702,-2886.66,0.00028372,3]
[370333704,1751963446712,-490.0,0.00028372,3]
[370333705,1751963446722,-893.06,0.00028372,3]
[370333706,1751963446732,-6754.81,0.00028372,3]
[370333707,1751963446741,-460.0,0.00028372,3]
[370333708,1751963446751,-770.44,0.00028372,3]
[370333710,1751963446760,-1143.31,0.00028372,3]
[370333712,1751963446770,-748.4,0.00028372,3]
[370333714,1751963446780,-601.77,0.00028372,3]
[370333716,1751963446789,-1633.48,0.00028372,3]
[370333718,1751963446799,-460.0,0.00028372,3]
[370333720,1751963446809,-530.2,0.00028372,3]
[370333722,1751963446819,-1433.39,0.00028372,3]
[370333724,1751963446829,-1123.36,0.00028372,3]
[370333726,1751963446838,-523.2998413,0.00028372,3]
[370333729,1751963446849,-2232.47,0.00028372,3]
[370333731,1751963446859,-460.0,0.00028372,3]
[370333733,1751963446869,-776.52,0.00028372,3]
[370333735,1751963446879,-460.0,0.00028372,3]
[370333737,1751963446889,-675.74,0.00028372,2]
[370333739,1751963446898,-151.0,0.00028372,7]
[370333741,1751963446908,-781.8,0.00028372,3]
[370333743,1751963446918,-1644.75,0.00028372,3]
[370333745,1751963446927,-1544.36,0.00028372,3]
[370333747,1751963446937,-519.1,0.00028372,3]
[370333749,1751963446947,-575.93,0.00028372,3]
[370333751,1751963446956,-506.56,0.00028372,3]
[370333753,1751963446966,-2991.27,0.00028372,3]
[370333755,1751963446975,-161.504487,0.00028372,7]
[370333757,1751963446985,-650.11,0.00028372,3]
[370333759,1751963446994,-460.0,0.00028372,3]
[370333761,1751963447004,-161.504487,0.00028372,7]
[370333763,1751963447014,-500.0,0.00028372,3]
[370333765,1751963447024,-314409.8129593,0.00028372,2]
[370333767,1751963447034,-500.0,0.00028373,5]
[370333769,1751963447043,-500.0,0.00028373,5]
[370333771,1751963447053,-500.0,0.00028373,5]
[370333773,1751963447063,-326.08937302,0.00028373,5]
[370333775,1751963447073,-500.0,0.00028373,5]
[370333777,1751963447082,-500.0,0.00028373,5]
[370333779,1751963447091,-500.0,0.00028373,5]
[370333781,1751963447101,-165.37016742,0.00028373,3]
[370333783,1751963447110,-503.54800636,0.00028373,5]
[370333785,1751963447120,-500.0,0.00028373,5]
[370333787,1751963447129,-500.0,0.00028373,5]
[370333789,1751963447138,-160.49492803,0.00028373,5]
[370333791,1751963447148,-500.0,0.00028373,5]
[370333792,1751963447157,-500.0,0.00028373,5]
[370333794,1751963447167,-501.96599084,0.00028373,5]
[370333797,1751963447178,-500.0,0.00028373,5]
[370333799,1751963447188,-500.0,0.00028373,5]
[370333801,1751963447198,-502.32457066,0.00028373,2]
[370333803,1751963447208,-500.0,0.00028373,3]
[370333805,1751963447223,-500.0,0.00028373,5]
[370333807,1751963447233,-460.0,0.00028373,3]
[370333809,1751963447243,-460.0,0.00028373,3]
[370333811,1751963447252,-460.0,0.00028373,3]
[370333813,1751963447262,-460.0,0.00028373,3]
[370333815,1751963447272,-460.0,0.00028373,3]
[370333817,1751963447282,-460.0,0.00028373,3]
[370333819,1751963447291,-460.0,0.00028373,3]
[370333822,1751963447302,-685.12,0.00028373,3]
[370333824,1751963447314,-744.02,0.00028373,3]
[370333826,1751963447323,-1001.9,0.00028373,3]
[370333828,1751963447333,-460.0,0.00028373,3]
[370333830,1751963447343,-460.0,0.00028373,3]
[370333832,1751963447352,-460.0,0.00028373,3]
[370333834,1751963447362,-460.0,0.00028373,3]
[370333836,1751963447372,-720.49,0.00028373,3]
[370333838,1751963447382,-1387.17,0.00028373,3]
[370333840,1751963447391,-1003.78,0.00028373,3]
[370333842,1751963447401,-460.0,0.00028373,3]
[370333844,1751963447411,-460.0,0.00028373,3]
[370333846,1751963447421,-460.0,0.00028373,3]
[370333848,1751963447431,-460.0,0.00028373,3]
[370333850,1751963447440,-587.44,0.00028373,3]
[370333852,1751963447450,-1180.97,0.00028373,3]
[370333854,1751963447459,-543.92,0.00028373,3]
[370333856,1751963447469,-460.0,0.00028373,3]
[370333858,1751963447478,-460.0,0.00028373,3]
[370333860,1751963447487,-1068.64,0.00028373,3]
[370333862,1751963447497,-768.88,0.00028373,3]
[370333864,1751963447511,-460.0,0.00028373,3]
[370333866,1751963447520,-1336.55,0.00028373,3]
[370333868,1751963447530,-460.0,0.00028373,3]
[370333870,1751963447540,-460.0,0.00028373,3]
[370333872,1751963447550,-460.0,0.00028373,3]
[370333874,1751963447561,-460.0,0.00028373,3]
[370333876,1751963447572,-460.0,0.00028373,3]
[370333878,1751963447583,-476.59,0.00028373,3]
[370333880,1751963447592,-691.3,0.00028373,3]
[370333882,1751963447602,-460.0,0.00028373,3]
[370333884,1751963447612,-460.0,0.00028373,3]
[370333886,1751963447621,-659.18,0.00028373,3]
[370333888,1751963447631,-460.0,0.00028373,3]
[370333890,1751963447641,-460.0,0.00028373,3]
[370333892,1751963447650,-460.0,0.00028373,3]
[370333894,1751963447660,-460.0,0.00028373,3]
[370333896,1751963447669,-460.0,0.00028373,3]
[370333899,1751963447679,-460.0,0.00028373,3]
[370333901,1751963447688,-730.2,0.00028373,3]
[370333903,1751963447698,-460.0,0.00028373,3]
[370333905,1751963447708,-460.0,0.00028373,3]
[370333907,1751963447717,-1661.34,0.00028373,3]
[370333909,1751963447727,-606.01,0.00028373,3]
[370333911,1751963447736,-809.92,0.00028373,3]
[370333913,1751963447746,-462.51,0.00028373,3]
[370333915,1751963447756,-952.94,0.00028373,3]
[370333917,1751963447766,-460.0,0.00028373,3]
[370333919,1751963447775,-477.62,0.00028373,3]
[370333921,1751963447785,-687.5,0.00028373,3]
[370333923,1751963447794,-1060.81,0.00028373,3]
[370333925,1751963447804,-526.29,0.00028373,3]
[370333927,1751963447814,-554.84,0.00028373,3]
[370333929,1751963447823,-460.0,0.00028373,3]
[370333931,1751963447833,-702.81,0.00028373,3]
[370333933,1751963447843,-500.0,0.00028373,3]
[370333935,1751963447852,-500.0,0.00028373,3]
[370333937,1751963447862,-1112.95,0.00028373,3]
[370333939,1751963447872,-571.21,0.00028373,3]
[370333942,1751963447883,-460.0,0.00028373,3]
[370333944,1751963447892,-460.0,0.00028373,3]
[370333946,1751963447902,-460.0,0.00028373,3]
[370333948,1751963447912,-633.55,0.00028373,3]
[370333950,1751963447921,-470.43,0.00028373,3]